[Event "Titled Tuesday Blitz August 1 Early 2023"]
[White "Kaplan, Avi Harrison"]
[Black "Csonka, Balazs"]
[WhiteFideId "30934559"]
[BlackFideId "742910"]
[WhiteElo "2493"]
[BlackElo "2697"]
[Result "0-1"]
[Round "10"]
[TimeControl "180+1"]
[Date "2023.08.01"]
[WhiteClock "0:00:05"]
[BlackClock "0:00:06"]
[Board "86"]

1. Nf3 {[%clk 0:02:52]}  Nf6 {[%clk 0:02:54]} 2. g3 {[%clk 0:02:51]}  g6 {[%clk 0:02:54]} 3. Bg2 {[%clk 0:02:51]}  Bg7 {[%clk 0:02:55]} 4. O-O {[%clk 0:02:51]}  O-O {[%clk 0:02:56]} 5. d3 {[%clk 0:02:51]}  d6 {[%clk 0:02:53]} 6. Nbd2 {[%clk 0:02:49]}  c5 {[%clk 0:02:52]} 7. c3 {[%clk 0:02:47]}  Nc6 {[%clk 0:02:52]} 8. Qc2 {[%clk 0:02:47]}  e5 {[%clk 0:02:49]} 9. e4 {[%clk 0:02:45]}  h6 {[%clk 0:02:48]} 10. Rd1 {[%clk 0:02:44]}  Be6 {[%clk 0:02:47]} 11. Nf1 {[%clk 0:02:44]}  d5 {[%clk 0:02:45]} 12. Ne3 {[%clk 0:02:31]}  d4 {[%clk 0:02:43]} 13. Nf1 {[%clk 0:02:21]}  Ne8 {[%clk 0:02:39]} 14. a3 {[%clk 0:02:15]}  a5 {[%clk 0:02:26]} 15. h3 {[%clk 0:01:46]}  Nd6 {[%clk 0:02:21]} 16. Bd2 {[%clk 0:01:35]}  a4 {[%clk 0:02:12]} 17. c4 {[%clk 0:01:34]}  Na5 {[%clk 0:02:07]} 18. Qxa4 {[%clk 0:01:29]}  Naxc4 {[%clk 0:01:59]} 19. Qc2 {[%clk 0:01:27]}  Nxd2 {[%clk 0:01:58]} 20. N1xd2 {[%clk 0:01:25]}  Rc8 {[%clk 0:01:52]} 21. b3 {[%clk 0:01:23]}  b5 {[%clk 0:01:51]} 22. a4 {[%clk 0:01:22]}  c4 {[%clk 0:01:50]} 23. bxc4 {[%clk 0:01:11]}  bxc4 {[%clk 0:01:51]} 24. dxc4 {[%clk 0:01:08]}  Nxc4 {[%clk 0:01:50]} 25. Nxc4 {[%clk 0:01:06]}  Rxc4 {[%clk 0:01:48]} 26. Qd2 {[%clk 0:01:01]}  Qa8 {[%clk 0:01:46]} 27. a5 {[%clk 0:01:00]}  Rfc8 {[%clk 0:01:46]} 28. Ne1 {[%clk 0:00:52]}  Rc3 {[%clk 0:01:30]} 29. Nd3 {[%clk 0:00:44]}  Rc2 {[%clk 0:01:25]} 30. Qe1 {[%clk 0:00:39]}  R8c3 {[%clk 0:01:21]} 31. Nb4 {[%clk 0:00:34]}  Rb2 {[%clk 0:01:20]} 32. Nd5 {[%clk 0:00:33]}  Rcc2 {[%clk 0:01:17]} 33. a6 {[%clk 0:00:32]}  Ra2 {[%clk 0:01:05]} 34. Nc7 {[%clk 0:00:21]}  Rxc7 {[%clk 0:01:03]} 35. Rxa2 {[%clk 0:00:18]}  Bxa2 {[%clk 0:01:04]} 36. Ra1 {[%clk 0:00:19]}  Bc4 {[%clk 0:01:02]} 37. Qb4 {[%clk 0:00:17]}  Bf8 {[%clk 0:00:36]} 38. Qb6 {[%clk 0:00:16]}  Qa7 {[%clk 0:00:31]} 39. Qf6 {[%clk 0:00:14]}  Re7 {[%clk 0:00:27]} 40. Qc6 {[%clk 0:00:08]}  Be2 {[%clk 0:00:26]} 41. Bf1 {[%clk 0:00:06]}  Bxf1 {[%clk 0:00:21]} 42. Kxf1 {[%clk 0:00:07]}  Re6 {[%clk 0:00:21]} 43. Qb5 {[%clk 0:00:02]}  Rb6 {[%clk 0:00:18]} 44. Qxb6 {[%clk 0:00:02]}  Qxb6 {[%clk 0:00:14]} 45. a7 {[%clk 0:00:03]}  Qc6 {[%clk 0:00:12]} 46. a8=Q {[%clk 0:00:03]}  Qc4+ {[%clk 0:00:09]} 47. Kg1 {[%clk 0:00:03]}  Qe2 {[%clk 0:00:09]} 48. Qa2 {[%clk 0:00:01]}  Qf3 {[%clk 0:00:09]} 49. Re1 {[%clk 0:00:01]}  Bb4 {[%clk 0:00:08]} 50. Qe2 {[%clk 0:00:01]}  Qb3 {[%clk 0:00:05]} 51. Rd1 {[%clk 0:00:01]}  Bc3 {[%clk 0:00:05]} 52. Qd3 {[%clk 0:00:02]}  Kg7 {[%clk 0:00:05]} 53. Kg2 {[%clk 0:00:02]}  Qb7 {[%clk 0:00:05]} 54. Rc1 {[%clk 0:00:02]}  Qc6 {[%clk 0:00:05]} 55. f3 {[%clk 0:00:03]}  h5 {[%clk 0:00:05]} 56. Rc2 {[%clk 0:00:03]}  Qb7 {[%clk 0:00:05]} 57. h4 {[%clk 0:00:04]}  Qc6 {[%clk 0:00:06]} 58. Qd1 {[%clk 0:00:03]}  Qc4 {[%clk 0:00:06]} 59. Qe2 {[%clk 0:00:03]}  d3 {[%clk 0:00:05]} 60. Qf1 {[%clk 0:00:04]}  dxc2 {[%clk 0:00:05]} 61. Qxc4 {[%clk 0:00:04]}  c1=Q {[%clk 0:00:05]} 62. Qd5 {[%clk 0:00:03]}  Qd2+ {[%clk 0:00:05]} 63. Kh3 {[%clk 0:00:04]}  Qxd5 {[%clk 0:00:05]} 64. exd5 {[%clk 0:00:04]}  f5 {[%clk 0:00:06]} 65. d6 {[%clk 0:00:04]}  Kf6 {[%clk 0:00:06]} 66. g4 {[%clk 0:00:04]}  Ke6 {[%clk 0:00:06]} 67. gxh5 {[%clk 0:00:04]}  gxh5 {[%clk 0:00:06]} 68. Kg3 {[%clk 0:00:05]}  Kxd6 {[%clk 0:00:06]} 69. Kf2 {[%clk 0:00:06]}  Kd5 {[%clk 0:00:06]} 70. Ke3 {[%clk 0:00:06]}  Bd4+ {[%clk 0:00:07]} 71. Kd3 {[%clk 0:00:07]}  e4+ {[%clk 0:00:06]} 72. fxe4+ {[%clk 0:00:07]}  fxe4+ {[%clk 0:00:07]} 73. Ke2 {[%clk 0:00:08]}  Ke5 {[%clk 0:00:08]} 74. Kf1 {[%clk 0:00:08]}  Kf4 {[%clk 0:00:09]} 75. Kg2 {[%clk 0:00:08]}  Ke3 {[%clk 0:00:09]} 76. Kg3 {[%clk 0:00:09]}  Be5+ {[%clk 0:00:08]} 77. Kg2 {[%clk 0:00:09]}  Ke2 {[%clk 0:00:08]} 78. Kh3 {[%clk 0:00:10]}  e3 {[%clk 0:00:07]} 79. Kg2 {[%clk 0:00:10]}  Kd3 {[%clk 0:00:07]} 80. Kh3 {[%clk 0:00:04]}  e2 {[%clk 0:00:07]} 81. Kg2 {[%clk 0:00:05]}  e1=Q {[%clk 0:00:07]} 82. Kf3 {[%clk 0:00:05]}  Qg3# {[%clk 0:00:06]} 0-1


[Site "https://www.chess.com"]

[Event "Titled Tuesday Blitz August 1 Early 2023"]
[White "Kvaloy, Aksel Bu"]
[Black "Grossboss19"]
[WhiteFideId "1528815"]
[WhiteElo "2617"]
[BlackElo "2480"]
[Result "0-1"]
[Round "10"]
[TimeControl "180+1"]
[Date "2023.08.01"]
[WhiteClock "0:00:05"]
[BlackClock "0:00:09"]
[Board "89"]

1. e4 {[%clk 0:03:00]}  c6 {[%clk 0:02:57]} 2. Nc3 {[%clk 0:02:55]}  d5 {[%clk 0:02:57]} 3. Nf3 {[%clk 0:02:56]}  Bg4 {[%clk 0:02:56]} 4. h3 {[%clk 0:02:52]}  Bxf3 {[%clk 0:02:56]} 5. Qxf3 {[%clk 0:02:52]}  Nf6 {[%clk 0:02:55]} 6. e5 {[%clk 0:02:51]}  Nfd7 {[%clk 0:02:53]} 7. d4 {[%clk 0:02:49]}  e6 {[%clk 0:02:53]} 8. Bd3 {[%clk 0:02:39]}  c5 {[%clk 0:02:48]} 9. Nb5 {[%clk 0:02:32]}  cxd4 {[%clk 0:02:45]} 10. O-O {[%clk 0:02:26]}  Nxe5 {[%clk 0:02:39]} 11. Qg3 {[%clk 0:02:20]}  Nbc6 {[%clk 0:02:34]} 12. Bf4 {[%clk 0:02:11]}  f6 {[%clk 0:02:25]} 13. Rae1 {[%clk 0:02:04]}  a6 {[%clk 0:02:07]} 14. Bxe5 {[%clk 0:01:39]}  fxe5 {[%clk 0:02:06]} 15. Rxe5 {[%clk 0:01:15]}  Nxe5 {[%clk 0:01:46]} 16. Qxe5 {[%clk 0:01:12]}  Kd7 {[%clk 0:01:46]} 17. Nxd4 {[%clk 0:01:09]}  Qf6 {[%clk 0:01:43]} 18. Qe3 {[%clk 0:01:05]}  Bc5 {[%clk 0:01:40]} 19. c3 {[%clk 0:01:00]}  e5 {[%clk 0:01:35]} 20. Bf5+ {[%clk 0:00:55]}  Kd6 {[%clk 0:01:10]} 21. b4 {[%clk 0:00:26]}  Ba7 {[%clk 0:00:43]} 22. Qg3 {[%clk 0:00:19]}  Bxd4 {[%clk 0:00:42]} 23. cxd4 {[%clk 0:00:19]}  Qxf5 {[%clk 0:00:42]} 24. Re1 {[%clk 0:00:20]}  Rhe8 {[%clk 0:00:39]} 25. Rc1 {[%clk 0:00:08]}  Rac8 {[%clk 0:00:33]} 26. Rd1 {[%clk 0:00:06]}  g6 {[%clk 0:00:22]} 27. Qa3 {[%clk 0:00:04]}  Ke6 {[%clk 0:00:19]} 28. Re1 {[%clk 0:00:03]}  e4 {[%clk 0:00:19]} 29. b5 {[%clk 0:00:03]}  axb5 {[%clk 0:00:19]} 30. Qa7 {[%clk 0:00:03]}  Qf7 {[%clk 0:00:18]} 31. Qb6+ {[%clk 0:00:03]}  Rc6 {[%clk 0:00:18]} 32. Qxb5 {[%clk 0:00:04]}  Qc7 {[%clk 0:00:18]} 33. f3 {[%clk 0:00:03]}  Kd7 {[%clk 0:00:18]} 34. Qxd5+ {[%clk 0:00:03]}  Qd6 {[%clk 0:00:18]} 35. Qb5 {[%clk 0:00:02]}  Qxd4+ {[%clk 0:00:14]} 36. Kh1 {[%clk 0:00:03]}  Kc7 {[%clk 0:00:13]} 37. fxe4 {[%clk 0:00:02]}  Rxe4 {[%clk 0:00:13]} 38. Rf1 {[%clk 0:00:02]}  Re7 {[%clk 0:00:12]} 39. Qa5+ {[%clk 0:00:02]}  Qb6 {[%clk 0:00:09]} 40. Qg5 {[%clk 0:00:01]}  Rd7 {[%clk 0:00:09]} 41. Qg3+ {[%clk 0:00:02]}  Rcd6 {[%clk 0:00:09]} 42. Rc1+ {[%clk 0:00:02]}  Kb8 {[%clk 0:00:09]} 43. Qf4 {[%clk 0:00:02]}  Ka7 {[%clk 0:00:08]} 44. Qa4+ {[%clk 0:00:02]}  Qa6 {[%clk 0:00:09]} 45. Qb3 {[%clk 0:00:02]}  Rb6 {[%clk 0:00:06]} 46. Qe3 {[%clk 0:00:02]}  Qa5 {[%clk 0:00:05]} 47. Kh2 {[%clk 0:00:02]}  Ka6 {[%clk 0:00:04]} 48. Rc5 {[%clk 0:00:02]}  Rb5 {[%clk 0:00:04]} 49. Rc4 {[%clk 0:00:02]}  Qb6 {[%clk 0:00:03]} 50. Qe2 {[%clk 0:00:01]}  Qd6+ {[%clk 0:00:03]} 51. Kh1 {[%clk 0:00:01]}  Qd1+ {[%clk 0:00:03]} 52. Qxd1 {[%clk 0:00:01]}  Rxd1+ {[%clk 0:00:04]} 53. Kh2 {[%clk 0:00:01]}  Rd6 {[%clk 0:00:04]} 54. Rc2 {[%clk 0:00:02]}  Kb6 {[%clk 0:00:05]} 55. Re2 {[%clk 0:00:02]}  Rd7 {[%clk 0:00:05]} 56. Rc2 {[%clk 0:00:03]}  Ka7 {[%clk 0:00:05]} 57. Re2 {[%clk 0:00:04]}  Rb6 {[%clk 0:00:06]} 58. Rc2 {[%clk 0:00:04]}  Ra6 {[%clk 0:00:07]} 59. Re2 {[%clk 0:00:05]}  b6 {[%clk 0:00:07]} 60. Rc2 {[%clk 0:00:05]}  Kb7 {[%clk 0:00:08]} 61. Re2 {[%clk 0:00:06]}  Rc7 {[%clk 0:00:09]} 62. Rc2 {[%clk 0:00:05]}  Rxc2 {[%clk 0:00:09]} 0-1


[Site "https://www.chess.com"]

[Event "Titled Tuesday Blitz August 1 Early 2023"]
[White "Tologon tegin, Semetei"]
[Black "Kayis, Gulcan Sena"]
[WhiteFideId "13800574"]
[BlackFideId "34553045"]
[WhiteElo "2560"]
[BlackElo "2470"]
[Result "1-0"]
[Round "10"]
[TimeControl "180+1"]
[Date "2023.08.01"]
[WhiteClock "0:00:09"]
[BlackClock "0:00:00"]
[Board "92"]

1. e4 {[%clk 0:02:57]}  e6 {[%clk 0:02:31]} 2. Nc3 {[%clk 0:02:57]}  d5 {[%clk 0:02:30]} 3. d4 {[%clk 0:02:57]}  Nf6 {[%clk 0:02:29]} 4. e5 {[%clk 0:02:57]}  Nfd7 {[%clk 0:02:29]} 5. f4 {[%clk 0:02:57]}  c5 {[%clk 0:02:29]} 6. Nf3 {[%clk 0:02:58]}  Nc6 {[%clk 0:02:29]} 7. Be3 {[%clk 0:02:57]}  Be7 {[%clk 0:02:29]} 8. Qd2 {[%clk 0:02:48]}  O-O {[%clk 0:02:29]} 9. Be2 {[%clk 0:02:47]}  f6 {[%clk 0:02:21]} 10. exf6 {[%clk 0:02:43]}  Bxf6 {[%clk 0:02:18]} 11. dxc5 {[%clk 0:02:42]}  Qa5 {[%clk 0:02:14]} 12. a3 {[%clk 0:02:31]}  Nxc5 {[%clk 0:02:11]} 13. O-O {[%clk 0:02:25]}  Bxc3 {[%clk 0:02:05]} 14. Qxc3 {[%clk 0:02:21]}  Qxc3 {[%clk 0:02:04]} 15. bxc3 {[%clk 0:02:22]}  Ne4 {[%clk 0:02:04]} 16. c4 {[%clk 0:02:18]}  dxc4 {[%clk 0:01:56]} 17. Bxc4 {[%clk 0:02:17]}  Na5 {[%clk 0:01:56]} 18. Bd3 {[%clk 0:02:12]}  Nf6 {[%clk 0:01:55]} 19. Rfe1 {[%clk 0:02:08]}  Bd7 {[%clk 0:01:53]} 20. Bd2 {[%clk 0:01:51]}  Nc6 {[%clk 0:01:51]} 21. Ng5 {[%clk 0:01:43]}  Nd5 {[%clk 0:01:34]} 22. g3 {[%clk 0:01:37]}  g6 {[%clk 0:01:20]} 23. Nxe6 {[%clk 0:01:36]}  Rfe8 {[%clk 0:01:13]} 24. Nc5 {[%clk 0:01:30]}  Rxe1+ {[%clk 0:00:43]} 25. Rxe1 {[%clk 0:01:31]}  Bg4 {[%clk 0:00:42]} 26. Bc4 {[%clk 0:01:28]}  Rd8 {[%clk 0:00:35]} 27. Nxb7 {[%clk 0:01:28]}  Rd7 {[%clk 0:00:34]} 28. Nc5 {[%clk 0:01:27]}  Rd8 {[%clk 0:00:32]} 29. Bc1 {[%clk 0:00:52]}  Kg7 {[%clk 0:00:26]} 30. Ne6+ {[%clk 0:00:37]}  Bxe6 {[%clk 0:00:22]} 31. Rxe6 {[%clk 0:00:38]}  Nd4 {[%clk 0:00:17]} 32. Bb2 {[%clk 0:00:35]}  Kf7 {[%clk 0:00:17]} 33. Ra6 {[%clk 0:00:29]}  Nxc2 {[%clk 0:00:17]} 34. Rxa7+ {[%clk 0:00:25]}  Kf8 {[%clk 0:00:16]} 35. Bg7+ {[%clk 0:00:23]}  Kg8 {[%clk 0:00:15]} 36. Bf6 {[%clk 0:00:21]}  Rd6 {[%clk 0:00:14]} 37. Be5 {[%clk 0:00:21]}  Rd8 {[%clk 0:00:14]} 38. Rg7+ {[%clk 0:00:16]}  Kf8 {[%clk 0:00:13]} 39. Rxh7 {[%clk 0:00:16]}  Nce3 {[%clk 0:00:13]} 40. Bxd5 {[%clk 0:00:13]}  Rxd5 {[%clk 0:00:13]} 41. Ra7 {[%clk 0:00:11]}  Ng4 {[%clk 0:00:11]} 42. Bg7+ {[%clk 0:00:09]}  Kg8 {[%clk 0:00:10]} 43. h3 {[%clk 0:00:10]}  Ne3 {[%clk 0:00:10]} 44. Kf2 {[%clk 0:00:10]}  Nc4 {[%clk 0:00:09]} 45. a4 {[%clk 0:00:08]}  Nb6 {[%clk 0:00:09]} 46. a5 {[%clk 0:00:08]}  Nc4 {[%clk 0:00:09]} 47. a6 {[%clk 0:00:07]}  Ra5 {[%clk 0:00:09]} 48. Bf6 {[%clk 0:00:07]}  Nd6 {[%clk 0:00:08]} 49. Rg7+ {[%clk 0:00:07]}  Kf8 {[%clk 0:00:07]} 50. a7 {[%clk 0:00:07]}  Ne4+ {[%clk 0:00:07]} 51. Kf3 {[%clk 0:00:08]}  Nxf6 {[%clk 0:00:07]} 52. Rb7 {[%clk 0:00:08]}  Ne8 {[%clk 0:00:06]} 53. Kg4 {[%clk 0:00:07]}  Kg8 {[%clk 0:00:06]} 54. h4 {[%clk 0:00:07]}  Kf8 {[%clk 0:00:05]} 55. Kf3 {[%clk 0:00:07]}  Kg8 {[%clk 0:00:04]} 56. g4 {[%clk 0:00:07]}  Kf8 {[%clk 0:00:03]} 57. g5 {[%clk 0:00:06]}  Kg8 {[%clk 0:00:03]} 58. Kg4 {[%clk 0:00:07]}  Kf8 {[%clk 0:00:03]} 59. h5 {[%clk 0:00:08]}  gxh5+ {[%clk 0:00:03]} 60. Kxh5 {[%clk 0:00:08]}  Kg8 {[%clk 0:00:03]} 61. Kh6 {[%clk 0:00:09]}  Ra6+ {[%clk 0:00:00]} 62. g6 {[%clk 0:00:09]} 1-0


[Site "https://www.chess.com"]

[Event "Titled Tuesday Blitz August 1 Early 2023"]
[White "Herman, Daniel"]
[Black "Sadykov, Ramil"]
[WhiteFideId "30935008"]
[BlackFideId "24113590"]
[WhiteElo "2448"]
[BlackElo "2558"]
[Result "0-1"]
[Round "10"]
[TimeControl "180+1"]
[Date "2023.08.01"]
[WhiteClock "0:00:01"]
[BlackClock "0:00:08"]
[Board "93"]

1. c4 {[%clk 0:03:00]}  Nf6 {[%clk 0:02:59]} 2. Nc3 {[%clk 0:03:00]}  d5 {[%clk 0:02:58]} 3. cxd5 {[%clk 0:02:59]}  Nxd5 {[%clk 0:02:59]} 4. Nf3 {[%clk 0:02:55]}  g6 {[%clk 0:02:52]} 5. g3 {[%clk 0:02:51]}  Bg7 {[%clk 0:02:52]} 6. Bg2 {[%clk 0:02:51]}  O-O {[%clk 0:02:53]} 7. O-O {[%clk 0:02:50]}  Nc6 {[%clk 0:02:53]} 8. d4 {[%clk 0:02:43]}  Nb6 {[%clk 0:02:51]} 9. d5 {[%clk 0:02:37]}  Na5 {[%clk 0:02:51]} 10. e4 {[%clk 0:02:27]}  c6 {[%clk 0:02:49]} 11. Re1 {[%clk 0:02:05]}  cxd5 {[%clk 0:02:47]} 12. exd5 {[%clk 0:02:05]}  Bxc3 {[%clk 0:02:23]} 13. bxc3 {[%clk 0:02:06]}  Nxd5 {[%clk 0:02:17]} 14. Bh6 {[%clk 0:01:59]}  Re8 {[%clk 0:02:18]} 15. c4 {[%clk 0:01:43]}  Nf6 {[%clk 0:02:13]} 16. Qxd8 {[%clk 0:01:39]}  Rxd8 {[%clk 0:02:14]} 17. Rxe7 {[%clk 0:01:39]}  Be6 {[%clk 0:01:48]} 18. Ne5 {[%clk 0:01:07]}  Rac8 {[%clk 0:01:41]} 19. Bg5 {[%clk 0:01:02]}  Kg7 {[%clk 0:01:41]} 20. Re1 {[%clk 0:00:53]}  h6 {[%clk 0:01:34]} 21. Bf4 {[%clk 0:00:44]}  Ng8 {[%clk 0:00:52]} 22. Rxe6 {[%clk 0:00:25]}  fxe6 {[%clk 0:00:53]} 23. Bh3 {[%clk 0:00:22]}  Re8 {[%clk 0:00:53]} 24. Rd1 {[%clk 0:00:16]}  Nf6 {[%clk 0:00:53]} 25. Nf3 {[%clk 0:00:13]}  g5 {[%clk 0:00:50]} 26. Be5 {[%clk 0:00:13]}  Nxc4 {[%clk 0:00:50]} 27. Ba1 {[%clk 0:00:12]}  Rcd8 {[%clk 0:00:45]} 28. Rc1 {[%clk 0:00:12]}  b5 {[%clk 0:00:43]} 29. Bf1 {[%clk 0:00:11]}  Rc8 {[%clk 0:00:32]} 30. Rd1 {[%clk 0:00:11]}  Red8 {[%clk 0:00:32]} 31. Re1 {[%clk 0:00:11]}  Kf7 {[%clk 0:00:16]} 32. Ne5+ {[%clk 0:00:11]}  Nxe5 {[%clk 0:00:16]} 33. Bxe5 {[%clk 0:00:11]}  a6 {[%clk 0:00:14]} 34. Bh3 {[%clk 0:00:10]}  g4 {[%clk 0:00:13]} 35. Bg2 {[%clk 0:00:10]}  Rd2 {[%clk 0:00:11]} 36. Bb7 {[%clk 0:00:06]}  Rcc2 {[%clk 0:00:10]} 37. Rf1 {[%clk 0:00:06]}  Rxa2 {[%clk 0:00:10]} 38. Bf4 {[%clk 0:00:05]}  Rdc2 {[%clk 0:00:09]} 39. Bxh6 {[%clk 0:00:05]}  Nd5 {[%clk 0:00:09]} 40. Re1 {[%clk 0:00:01]}  Rxf2 {[%clk 0:00:08]} 0-1


[Site "https://www.chess.com"]

[Event "Titled Tuesday Blitz August 1 Early 2023"]
[White "Necromon"]
[Black "Mendez Fortes, Eduardo Jesus"]
[BlackFideId "3502376"]
[WhiteElo "2440"]
[BlackElo "2554"]
[Result "0-1"]
[Round "10"]
[TimeControl "180+1"]
[Date "2023.08.01"]
[WhiteClock "0:00:00"]
[BlackClock "0:00:11"]
[Board "94"]

1. Nf3 {[%clk 0:03:00]}  d5 {[%clk 0:02:55]} 2. b3 {[%clk 0:03:00]}  Nf6 {[%clk 0:02:55]} 3. Bb2 {[%clk 0:03:00]}  e6 {[%clk 0:02:56]} 4. g3 {[%clk 0:03:00]}  c5 {[%clk 0:02:56]} 5. d4 {[%clk 0:02:59]}  Nc6 {[%clk 0:02:57]} 6. Bg2 {[%clk 0:02:58]}  cxd4 {[%clk 0:02:55]} 7. Nxd4 {[%clk 0:02:58]}  Bb4+ {[%clk 0:02:56]} 8. c3 {[%clk 0:02:56]}  Bd6 {[%clk 0:02:55]} 9. O-O {[%clk 0:02:55]}  O-O {[%clk 0:02:55]} 10. Na3 {[%clk 0:02:47]}  Bd7 {[%clk 0:02:52]} 11. c4 {[%clk 0:02:44]}  Nxd4 {[%clk 0:02:49]} 12. Qxd4 {[%clk 0:02:42]}  e5 {[%clk 0:02:45]} 13. Qd2 {[%clk 0:02:39]}  d4 {[%clk 0:02:31]} 14. Bxb7 {[%clk 0:02:38]}  Rb8 {[%clk 0:02:31]} 15. Bg2 {[%clk 0:02:38]}  Bb4 {[%clk 0:02:31]} 16. Qd3 {[%clk 0:02:35]}  Re8 {[%clk 0:02:17]} 17. Nc2 {[%clk 0:02:30]}  Bc5 {[%clk 0:02:16]} 18. Ba3 {[%clk 0:02:10]}  Bb6 {[%clk 0:02:13]} 19. c5 {[%clk 0:02:04]}  Bc7 {[%clk 0:02:13]} 20. c6 {[%clk 0:02:02]}  Be6 {[%clk 0:02:13]} 21. Rac1 {[%clk 0:01:55]}  Nd5 {[%clk 0:02:11]} 22. Qd2 {[%clk 0:01:46]}  Nc3 {[%clk 0:02:09]} 23. Ne1 {[%clk 0:01:41]}  e4 {[%clk 0:01:40]} 24. Rxc3 {[%clk 0:01:18]}  dxc3 {[%clk 0:01:39]} 25. Qxc3 {[%clk 0:01:19]}  Qd5 {[%clk 0:01:35]} 26. Nc2 {[%clk 0:01:11]}  Be5 {[%clk 0:01:26]} 27. Qc5 {[%clk 0:01:05]}  Qxc5 {[%clk 0:01:25]} 28. Bxc5 {[%clk 0:01:06]}  Rb5 {[%clk 0:01:07]} 29. Bd4 {[%clk 0:01:02]}  Rc8 {[%clk 0:01:03]} 30. Bxe4 {[%clk 0:00:57]}  Bxd4 {[%clk 0:01:03]} 31. Nxd4 {[%clk 0:00:57]}  Rb4 {[%clk 0:01:03]} 32. e3 {[%clk 0:00:43]}  a5 {[%clk 0:01:01]} 33. Rc1 {[%clk 0:00:42]}  Kf8 {[%clk 0:01:00]} 34. Bxh7 {[%clk 0:00:30]}  Rxd4 {[%clk 0:00:56]} 35. exd4 {[%clk 0:00:24]}  g6 {[%clk 0:00:56]} 36. Rc5 {[%clk 0:00:21]}  Ke7 {[%clk 0:00:56]} 37. d5 {[%clk 0:00:18]}  Bg4 {[%clk 0:00:50]} 38. Rxa5 {[%clk 0:00:19]}  Bf3 {[%clk 0:00:50]} 39. Kf1 {[%clk 0:00:18]}  Kd6 {[%clk 0:00:50]} 40. Ke1 {[%clk 0:00:18]}  Rh8 {[%clk 0:00:40]} 41. Bxg6 {[%clk 0:00:16]}  fxg6 {[%clk 0:00:41]} 42. Ra6 {[%clk 0:00:13]}  Bxd5 {[%clk 0:00:39]} 43. c7+ {[%clk 0:00:13]}  Bc6 {[%clk 0:00:38]} 44. h4 {[%clk 0:00:13]}  Kxc7 {[%clk 0:00:38]} 45. b4 {[%clk 0:00:12]}  Re8+ {[%clk 0:00:37]} 46. Kd2 {[%clk 0:00:12]}  Re4 {[%clk 0:00:35]} 47. a3 {[%clk 0:00:11]}  Re5 {[%clk 0:00:35]} 48. Kd3 {[%clk 0:00:11]}  Rf5 {[%clk 0:00:33]} 49. Ke3 {[%clk 0:00:10]}  Rf3+ {[%clk 0:00:33]} 50. Ke2 {[%clk 0:00:09]}  Rf6 {[%clk 0:00:31]} 51. Ra5 {[%clk 0:00:09]}  Kb6 {[%clk 0:00:30]} 52. f4 {[%clk 0:00:10]}  Bb5+ {[%clk 0:00:30]} 53. Ke3 {[%clk 0:00:10]}  Re6+ {[%clk 0:00:30]} 54. Kf3 {[%clk 0:00:10]}  Be2+ {[%clk 0:00:26]} 55. Kf2 {[%clk 0:00:10]}  Bd3 {[%clk 0:00:26]} 56. Rc5 {[%clk 0:00:09]}  Bb5 {[%clk 0:00:23]} 57. Kf3 {[%clk 0:00:09]}  Rd6 {[%clk 0:00:20]} 58. Kg4 {[%clk 0:00:07]}  Rd3 {[%clk 0:00:20]} 59. Re5 {[%clk 0:00:05]}  Bd7+ {[%clk 0:00:20]} 60. Kg5 {[%clk 0:00:04]}  Rxg3+ {[%clk 0:00:20]} 61. Kf6 {[%clk 0:00:05]}  Bf5 {[%clk 0:00:20]} 62. Rxf5 {[%clk 0:00:03]}  gxf5 {[%clk 0:00:20]} 63. Kxf5 {[%clk 0:00:04]}  Kc6 {[%clk 0:00:21]} 64. h5 {[%clk 0:00:04]}  Kd6 {[%clk 0:00:20]} 65. b5 {[%clk 0:00:05]}  Rxa3 {[%clk 0:00:20]} 66. Kf6 {[%clk 0:00:04]}  Ra8 {[%clk 0:00:16]} 67. h6 {[%clk 0:00:03]}  Rf8+ {[%clk 0:00:15]} 68. Kg5 {[%clk 0:00:03]}  Ke7 {[%clk 0:00:15]} 69. Kg6 {[%clk 0:00:02]}  Rxf4 {[%clk 0:00:15]} 70. h7 {[%clk 0:00:02]}  Rg4+ {[%clk 0:00:14]} 71. Kh5 {[%clk 0:00:02]}  Rg1 {[%clk 0:00:14]} 72. Kh6 {[%clk 0:00:02]}  Kf7 {[%clk 0:00:13]} 73. h8=N+ {[%clk 0:00:01]}  Kf6 {[%clk 0:00:13]} 74. Kh7 {[%clk 0:00:02]}  Rg7+ {[%clk 0:00:11]} 75. Kh6 {[%clk 0:00:00]}  Rg5 {[%clk 0:00:11]} 0-1


[Site "https://www.chess.com"]

[Event "Titled Tuesday Blitz August 1 Early 2023"]
[White "Kirillov, Dmitry"]
[Black "Kashlinskaya, Alina"]
[WhiteFideId "34180572"]
[BlackFideId "4198026"]
[WhiteElo "2439"]
[BlackElo "2552"]
[Result "0-1"]
[Round "10"]
[TimeControl "180+1"]
[Date "2023.08.01"]
[WhiteClock "0:00:22"]
[BlackClock "0:01:11"]
[Board "95"]

1. d4 {[%clk 0:03:00]}  Nf6 {[%clk 0:02:58]} 2. Nf3 {[%clk 0:03:00]}  g6 {[%clk 0:02:58]} 3. Nbd2 {[%clk 0:03:00]}  Bg7 {[%clk 0:02:58]} 4. e4 {[%clk 0:03:00]}  d6 {[%clk 0:02:58]} 5. Bd3 {[%clk 0:03:00]}  O-O {[%clk 0:02:59]} 6. O-O {[%clk 0:03:01]}  c5 {[%clk 0:02:57]} 7. dxc5 {[%clk 0:03:00]}  dxc5 {[%clk 0:02:57]} 8. h3 {[%clk 0:03:01]}  Nc6 {[%clk 0:02:57]} 9. Qe2 {[%clk 0:03:00]}  Nb4 {[%clk 0:02:53]} 10. Nc4 {[%clk 0:02:58]}  Nxd3 {[%clk 0:02:53]} 11. cxd3 {[%clk 0:02:58]}  b6 {[%clk 0:02:50]} 12. Rd1 {[%clk 0:02:51]}  Ba6 {[%clk 0:02:50]} 13. Bg5 {[%clk 0:02:48]}  h6 {[%clk 0:02:48]} 14. Be3 {[%clk 0:02:48]}  Nd7 {[%clk 0:02:46]} 15. d4 {[%clk 0:02:45]}  cxd4 {[%clk 0:02:45]} 16. Bxd4 {[%clk 0:02:46]}  e5 {[%clk 0:02:29]} 17. Bxe5 {[%clk 0:02:14]}  Bxc4 {[%clk 0:02:22]} 18. Qxc4 {[%clk 0:02:15]}  Bxe5 {[%clk 0:02:22]} 19. Qd5 {[%clk 0:02:12]}  Bxb2 {[%clk 0:02:14]} 20. Rab1 {[%clk 0:02:10]}  Nf6 {[%clk 0:02:15]} 21. Qb3 {[%clk 0:01:51]}  Qe7 {[%clk 0:02:11]} 22. Qxb2 {[%clk 0:01:47]}  Nxe4 {[%clk 0:02:11]} 23. Re1 {[%clk 0:01:46]}  Rad8 {[%clk 0:01:58]} 24. Ne5 {[%clk 0:01:37]}  Rd2 {[%clk 0:01:44]} 25. Qa1 {[%clk 0:01:27]}  Qc5 {[%clk 0:01:36]} 26. Re3 {[%clk 0:01:01]}  Nxf2 {[%clk 0:01:25]} 27. Rbe1 {[%clk 0:01:00]}  Rd1 {[%clk 0:01:13]} 28. Qb2 {[%clk 0:00:24]}  Rxe1+ {[%clk 0:01:12]} 29. Rxe1 {[%clk 0:00:22]}  Nd3+ {[%clk 0:01:11]} 0-1


[Site "https://www.chess.com"]